fUSD/lending_fUSD_20251105
["ID","MTS","AMOUNT","RATE_DAILY","PERIOD"]
[393219089,1762337089140,-1133.34368299,0.00017291,2]
[393219090,1762337089163,-210.79869946,0.00017291,2]
[393219091,1762337089185,-289.52694105,0.00017294,2]
[393219092,1762337089208,-550.0,0.00017294,2]
[393219093,1762337089234,-500.0,0.00017295,2]
[393219094,1762337089257,-500.0,0.00017295,2]
[393219095,1762337089280,-500.0,0.00017295,2]
[393219096,1762337089305,-151.0,0.00017295,2]
[393219097,1762337089328,-500.0,0.00017295,2]
[393219098,1762337089352,-151.0,0.00017295,2]
[393219099,1762337089376,-500.0,0.00017295,2]
[393219100,1762337089399,-151.0,0.00017295,2]
[393219101,1762337089422,-500.0,0.00017295,2]
[393219102,1762337089445,-151.0,0.00017295,2]
[393219103,1762337089472,-151.0,0.00017295,2]
[393219104,1762337089497,-500.0,0.00017295,2]
[393219105,1762337089520,-500.0,0.00017295,2]
[393219106,1762337089542,-514.84070869,0.00017295,2]
[393219107,1762337089566,-500.0,0.00017295,2]
[393219108,1762337089589,-500.0,0.00017295,2]
[393219109,1762337089611,-500.0,0.00017295,2]
[393219110,1762337089632,-200.0,0.00017295,2]
[393219111,1762337089654,-250.0,0.00017295,2]
[393219112,1762337089676,-250.0,0.00017295,2]
[393219113,1762337089702,-250.0,0.00017295,2]
[393219114,1762337089724,-322.6107,0.00017295,2]
[393219115,1762337089749,-250.0,0.00017295,2]
[393219116,1762337089772,-250.0,0.00017295,2]
[393219117,1762337089794,-250.0,0.00017295,2]
[393219118,1762337089816,-250.0,0.00017295,2]
[393219119,1762337089839,-250.0,0.00017295,2]
[393219120,1762337089861,-151.0,0.00017295,2]
[393219121,1762337089883,-250.0,0.00017295,2]
[393219122,1762337089905,-250.0,0.00017295,2]
[393219123,1762337089926,-250.0,0.00017295,2]
[393219124,1762337089949,-500.0,0.00017304,2]
[393219125,1762337089972,-500.0,0.00017304,2]
[393219126,1762337089993,-500.0,0.00017304,2]
[393219127,1762337090015,-500.0,0.00017304,2]
[393219128,1762337090037,-500.0,0.00017304,2]
[393219129,1762337090058,-500.0,0.00017304,2]
[393219130,1762337090079,-500.0,0.00017304,2]
[393219131,1762337090100,-500.0,0.00017304,2]
[393219132,1762337090122,-1000.0,0.00017305,2]
[393219133,1762337090143,-1522.0854,0.00017305,2]
[393219134,1762337090168,-209688.54838635,0.00017305,2]
[393219135,1762337101592,-181.42577871,0.00016742,7]
[393219136,1762337104712,-25.2182424,0.00016742,7]
[393219137,1762337104739,-12323.962,0.00017205,2]
[393219138,1762337104766,-300.0,0.00017304,2]
[393219139,1762337104789,-300.0,0.00017304,2]
[393219140,1762337104814,-1200.0,0.00017304,2]
[393219141,1762337104838,-105645.8197576,0.00017305,2]
[393219142,1762337123869,-2500.0,0.00017205,2]
[393219143,1762337123895,-104665.63185605,0.00017305,2]
[393219144,1762337123918,-500.0,0.00017318,2]
[393219145,1762337123939,-500.0,0.00017318,2]
[393219146,1762337123961,-500.0,0.00017318,2]
[393219147,1762337123983,-500.0,0.00017318,2]
[393219148,1762337131424,-197.73799382,0.00017318,2]
[393219149,1762337134148,-12.26200618,0.00017318,2]
[393219150,1762337134169,-161.83306896,0.00017367,2]
[393219151,1762337137824,-48.9656305,0.00017367,2]
[393219152,1762337137846,-116.78483521,0.00017373,2]
[393219153,1762337139185,-82.48769914,0.00017373,2]
[393219154,1762337139208,-500.0,0.00017373,2]
[393219155,1762337139230,-500.0,0.00017373,2]
[393219156,1762337139254,-500.0,0.00017373,2]
[393219157,1762337139277,-500.0,0.00017373,2]
[393219158,1762337139488,-500.73512593,0.00017373,2]
[393219159,1762337139511,-546.56519945,0.00017373,2]
[393219160,1762337139533,-500.0,0.00017373,2]
[393219161,1762337139554,-500.0,0.00017373,2]
[393219162,1762337139575,-500.0,0.00017373,2]
[393219163,1762337139596,-500.0,0.00017373,2]
[393219164,1762337139617,-500.0,0.00017373,2]
[393219165,1762337139639,-621.06284059,0.00017373,2]
[393219166,1762337139664,-554.9128886,0.00017373,2]
[393219167,1762337139684,-500.0,0.00017373,2]
[393219168,1762337139705,-500.0,0.00017373,2]
[393219169,1762337139727,-500.0,0.00017373,2]
[393219170,1762337139750,-606.61673561,0.00017373,2]
[393219171,1762337139774,-500.0,0.00017373,2]
[393219172,1762337139796,-500.0,0.00017373,2]
[393219173,1762337139817,-500.0,0.00017373,2]
[393219174,1762337139838,-500.0,0.00017373,2]
[393219175,1762337139861,-500.0,0.00017373,2]
[393219176,1762337139883,-500.25772691,0.00017373,2]
[393219177,1762337139903,-500.0,0.00017373,2]
[393219178,1762337139923,-500.0,0.00017373,2]
[393219179,1762337139943,-410.57797816,0.00017373,2]
[393219180,1762337139963,-224.78415886,0.00017373,2]
[393219181,1762337139984,-500.60577954,0.00017373,2]
[393219182,1762337140005,-500.0,0.00017373,2]
[393219183,1762337140026,-500.0,0.00017373,2]
[393219184,1762337140047,-500.0,0.00017404,2]
[393219185,1762337140071,-500.0,0.00017404,2]
[393219186,1762337140095,-175.39314765,0.00017404,2]
[393219187,1762337140115,-529.78303418,0.00017404,2]
[393219188,1762337140136,-500.0,0.00017404,2]
[393219189,1762337140157,-500.0,0.00017404,2]
[393219190,1762337140178,-610.29,0.00017404,2]
[393219191,1762337140200,-210.79869946,0.00017443,2]
[393219192,1762337140221,-250.0,0.00017445,2]
[393219193,1762337140243,-210.79869946,0.00017519,2]
[393219194,1762337140265,-195.0,0.00017547,2]
[393219195,1762337140286,-300.0,0.00017547,2]
[393219196,1762337140308,-1133.34368299,0.00017596,2]
[393219197,1762337140329,-210.79869946,0.00017596,2]
[393219198,1762337140351,-1133.34368299,0.00017672,2]
[393219199,1762337140372,-210.79869946,0.00017672,2]
[393219200,1762337140394,-221.75791629,0.00017688,2]
[393219201,1762337140418,-5888.0,0.00017724,2]
[393219202,1762337140439,-2500.0,0.00017724,3]
[393219203,1762337140461,-2500.0,0.00017733,3]
[393219204,1762337140482,-2500.0,0.00017742,3]
[393219205,1762337140504,-1133.34368299,0.00017748,2]
[393219206,1762337140526,-210.79869946,0.00017748,2]
[393219207,1762337140549,-999.0,0.00017749,3]
[393219208,1762337140571,-2500.0,0.0001775,3]
[393219209,1762337140591,-2500.0,0.00017759,3]
[393219210,1762337140612,-2500.0,0.00017768,3]
[393219211,1762337140633,-500.0,0.00017773,2]
[393219212,1762337140654,-1000.0,0.00017776,2]
[393219213,1762337140676,-2500.0,0.00017777,3]
[393219214,1762337140699,-210.0,0.0001778,2]
[393219215,1762337140720,-2500.0,0.00017786,3]
[393219216,1762337140744,-893.58488772,0.00017792,2]
[393219217,1762337140766,-2500.0,0.00017794,3]
[393219218,1762337140790,-1000.0,0.000178,2]
[393219219,1762337140811,-500.0,0.000178,2]
[393219220,1762337140832,-500.0,0.000178,2]
[393219221,1762337140857,-500.0,0.000178,2]
[393219222,1762337140878,-301.16203109,0.000178,2]
[393219223,1762337140900,-500.0,0.000178,2]
[393219224,1762337140923,-428.98509959,0.000178,2]
[393219225,1762337140948,-500.0,0.000178,2]
[393219226,1762337140975,-500.0,0.000178,2]
[393219227,1762337140996,-375.32688569,0.000178,2]
[393219228,1762337141020,-500.0,0.000178,2]
[393219229,1762337141044,-500.0,0.000178,2]
[393219230,1762337141066,-324.90615575,0.000178,2]
[393219231,1762337141090,-500.0,0.000178,2]
[393219232,1762337141111,-509.40808556,0.000178,2]
[393219233,1762337141135,-500.0,0.000178,2]
[393219234,1762337141159,-500.0,0.000178,2]
[393219235,1762337141183,-500.0,0.000178,2]
[393219236,1762337141208,-500.0,0.000178,2]
[393219237,1762337141233,-500.0,0.000178,2]
[393219238,1762337141255,-500.0,0.000178,2]
[393219239,1762337141282,-500.0,0.000178,2]
[393219240,1762337141306,-500.0,0.000178,2]
[393219241,1762337141331,-500.0,0.000178,2]
[393219242,1762337141356,-500.0,0.000178,2]
[393219243,1762337141381,-500.0,0.000178,2]
[393219244,1762337141405,-500.0,0.000178,2]
[393219245,1762337141428,-500.0,0.000178,2]
[393219246,1762337141453,-500.0,0.000178,2]
[393219247,1762337141477,-500.0,0.000178,2]
[393219248,1762337141501,-500.0,0.000178,2]
[393219249,1762337141527,-500.0,0.000178,2]
[393219250,1762337141550,-500.0,0.000178,2]
[393219251,1762337141574,-500.0,0.000178,2]
[393219252,1762337141599,-500.0,0.000178,2]
[393219253,1762337141623,-500.0,0.000178,2]
[393219254,1762337141646,-500.0,0.000178,2]
[393219255,1762337141670,-500.0,0.000178,2]
[393219256,1762337141694,-500.0,0.000178,2]
[393219257,1762337141718,-500.0,0.000178,2]
[393219258,1762337141743,-500.0,0.000178,2]
[393219259,1762337141770,-500.0,0.000178,2]
[393219260,1762337141795,-500.0,0.000178,2]
[393219261,1762337141822,-500.0,0.000178,2]
[393219262,1762337141848,-500.0,0.000178,2]
[393219263,1762337141874,-500.0,0.000178,2]
[393219264,1762337141897,-562.45917925,0.000178,2]
[393219265,1762337141921,-500.0,0.000178,2]
[393219266,1762337141945,-500.0,0.000178,2]
[393219267,1762337141973,-500.0,0.000178,2]
[393219268,1762337141997,-500.0,0.000178,2]
[393219269,1762337142021,-500.0,0.000178,2]
[393219270,1762337142045,-500.0,0.000178,2]
[393219271,1762337142070,-500.0,0.000178,2]
[393219272,1762337142227,-500.0,0.000178,2]
[393219273,1762337142264,-500.0,0.000178,2]
[393219274,1762337142291,-500.0,0.000178,2]
[393219275,1762337142316,-500.0,0.000178,2]
[393219276,1762337142341,-500.0,0.000178,2]
[393219277,1762337142369,-500.0,0.000178,2]
[393219278,1762337142394,-500.0,0.000178,2]
[393219279,1762337142419,-500.0,0.000178,2]
[393219280,1762337142444,-500.0,0.000178,2]
[393219281,1762337142469,-500.0,0.000178,2]
[393219282,1762337142493,-500.0,0.000178,2]
[393219283,1762337142518,-500.0,0.000178,2]
[393219284,1762337142541,-500.0,0.000178,2]
[393219285,1762337142567,-606.24591793,0.000178,2]
[393219286,1762337142594,-499.99999999,0.000178,2]
[393219287,1762337142620,-500.0,0.000178,2]
[393219288,1762337142645,-507.13775253,0.000178,2]
[393219289,1762337142671,-500.0,0.000178,2]
[393219290,1762337142696,-500.0,0.000178,2]
[393219291,1762337142722,-500.0,0.000178,2]
[393219292,1762337142748,-500.0,0.000178,2]
[393219293,1762337142776,-500.0,0.000178,2]
[393219294,1762337142799,-2500.0,0.00017803,3]
[393219295,1762337142821,-1133.34368299,0.00017824,2]
[393219296,1762337142846,-210.79869946,0.00017824,2]
[393219297,1762337142867,-166.66,0.00017828,2]
[393219298,1762337142888,-200.0,0.00017856,2]
[393219299,1762337142911,-500.0,0.00017873,2]
[393219300,1762337142933,-500.0,0.00017873,2]
[393219301,1762337142954,-500.0,0.00017873,2]
[393219302,1762337142974,-500.0,0.00017873,2]
[393219303,1762337142996,-1456.94118479,0.00017878,2]
[393219304,1762337143020,-1133.34368299,0.000179,2]
[393219305,1762337143042,-3234.649,0.000179,2]
[393219306,1762337143064,-183.86,0.000179,2]
[393219307,1762337143086,-210.79869946,0.000179,2]
[393219308,1762337143107,-983.54182498,0.000179,2]
[393219309,1762337143128,-352.51204801,0.000179,2]
[393219310,1762337143162,-1000.0,0.00017921,2]
[393219311,1762337143185,-494.76897243,0.00017921,2]
[393219312,1762337143209,-346.48749089,0.00017921,2]
[393219313,1762337143231,-1000.0,0.00017921,2]
[393219314,1762337143254,-665.30508617,0.00017921,2]
[393219315,1762337143278,-162.2869995,0.00017921,2]
[393219316,1762337182394,645.1534592,0.00030136,120]
[393219318,1762337190658,118.67772469,0.00013699,2]
[393219319,1762337190696,23.66539804,0.00013699,2]
[393219320,1762337190721,173.76041736,0.00013699,2]
[393219321,1762337190746,113.71645991,0.00013699,2]
[393219323,1762337233142,166.64051339,0.00015,2]
[393219324,1762337233166,233.35948948,0.00015,2]
[393219325,1762337300098,175.25348586,0.00030136,120]
[393219358,1762337435000,-10.31315652,0.00017105,2]
[393219359,1762337435011,-275.75472242,0.00017105,2]
[393219360,1762337435021,-286.06787885,0.00017193,2]
[393219361,1762337435031,-1200.0,0.00017203,2]
[393219362,1762337435040,-300.0,0.00017203,2]
[393219363,1762337435049,-3159.02190266,0.00017204,2]
[393219364,1762337435059,-278.4834349,0.00017204,2]
[393219365,1762337435068,-550.0,0.00017204,2]
[393219366,1762337435077,-874.49108136,0.00017205,2]
[393219367,1762337435089,-554.57401864,0.00017205,2]
[393219368,1762337435098,-460.31457471,0.00017205,2]
[393219369,1762337435109,-539.68542529,0.00017205,2]
[393219370,1762337435118,-4977.64107761,0.00017205,2]
[393219371,1762337435130,-2388.2175933,0.00017205,2]
[393219372,1762337435146,-377720.16116131,0.00017205,2]
[393219373,1762337435158,-25492.08675347,0.00017205,2]
[393219374,1762337435170,-9421.89341431,0.00017205,2]
[393219375,1762337435179,-1000.0,0.00017205,2]
[393219376,1762337435189,-2500.0,0.00017205,2]
[393219377,1762337435198,-589.5458966,0.00017273,2]
[393219378,1762337435207,-570.58461787,0.00017273,2]
[393219379,1762337435217,-500.0,0.00017273,2]
[393219380,1762337435226,-500.0,0.00017273,2]
[393219381,1762337435237,-500.0,0.00017273,2]
[393219382,1762337435247,-500.0,0.00017273,2]
[393219383,1762337435257,-3159.02190261,0.00017281,2]
[393219384,1762337435266,-286.06787885,0.00017282,2]
[393219385,1762337435276,-500.0,0.00017304,2]
[393219386,1762337435285,-3159.02190261,0.00017359,2]
[393219387,1762337435295,-286.06787885,0.0001737,2]
[393219388,1762337435303,-3159.02190261,0.00017436,2]
[393219389,1762337435313,-286.06787885,0.00017458,2]
[393219390,1762337435322,-3159.02190261,0.00017513,2]
[393219391,1762337435331,-286.06787885,0.00017547,2]
[393219392,1762337435340,-3159.02190261,0.00017591,2]
[393219393,1762337435350,-286.06787885,0.00017635,2]
[393219394,1762337435360,-3159.02190261,0.00017668,2]
[393219395,1762337435369,-286.06787885,0.00017723,2]
[393219396,1762337435378,-3159.02190261,0.00017745,2]
[393219397,1762337435387,-286.06787885,0.00017812,2]
[393219398,1762337435397,-630.20223,0.0001782,2]
[393219399,1762337435407,-517.77888096,0.00017821,2]
[393219400,1762337435416,-899.47928953,0.00017821,2]
[393219401,1762337435426,-1011.9293705,0.00017821,2]
[393219402,1762337435435,-1000.0,0.00017821,2]
[393219403,1762337435444,-2500.0,0.00017821,3]
[393219404,1762337435453,-3159.02190261,0.00017823,2]
[393219405,1762337435463,-2500.0,0.0001783,3]
[393219406,1762337435472,-2500.0,0.00017838,3]
[393219407,1762337435483,-2500.0,0.00017847,3]
[393219408,1762337435492,-314.31,0.00017855,2]
[393219409,1762337435502,-2500.0,0.00017856,3]
[393219410,1762337435511,-2500.0,0.00017865,3]
[393219411,1762337435520,-2500.0,0.00017874,3]
[393219412,1762337435530,-2500.0,0.00017882,3]
[393219413,1762337435539,-2500.0,0.00017891,3]
[393219414,1762337435548,-1000.0,0.000179,2]
[393219415,1762337435557,-258.94659985,0.000179,2]
[393219416,1762337435566,-714.18369427,0.000179,3]
[393219417,1762337435578,-1785.81630573,0.000179,3]
[393219418,1762337435587,-3159.02190261,0.000179,2]
[393219419,1762337435597,-286.06787885,0.000179,2]
[393219420,1762337435606,-217.69945838,0.000179,2]
[393219421,1762337435615,-394.78226342,0.000179,2]
[393219422,1762337435624,-1000.0,0.00017921,2]
[393219423,1762337435636,-500.0,0.00017924,2]
[393219424,1762337435649,-211.33836704,0.00017924,2]
[393219425,1762337435658,-500.0,0.00017924,2]
[393219426,1762337435667,-500.0,0.00017924,2]
[393219427,1762337435677,-500.0,0.00017924,2]
[393219428,1762337435687,-500.0,0.00017924,2]
[393219429,1762337435696,-500.0,0.00017924,2]
[393219430,1762337435705,-151.0,0.00017924,2]
[393219431,1762337435715,-2022.16483668,0.00017925,2]
[393219432,1762337435732,-8637.71116931,0.00017925,2]
[393219433,1762337435744,-1023.11758796,0.00017925,2]
[393219439,1762337438378,-404.61320446,0.00016438,2]
[393219449,1762337440926,-1.7e-07,0.00016438,2]
[393219450,1762337440948,-412.30679537,0.00016438,2]
[393219451,1762337440958,-163.4868763,0.000179,2]
[393219452,1762337440969,-956.07555395,0.00017925,2]
[393219453,1762337440979,-147072.9431161,0.00017925,2]
[393219454,1762337440991,-12851.2066825,0.00017925,2]
[393219455,1762337441009,-11820.1769068,0.00017926,2]
[393219456,1762337441018,-500.0,0.00017926,2]
[393219457,1762337441028,-96034.2493927,0.00017927,2]
[393219458,1762337441038,-210.0,0.00017964,2]
[393219459,1762337441047,-1000.0,0.0001797,2]
[393219460,1762337441058,-1000.0,0.0001797,2]
[393219461,1762337441067,-800.63275327,0.0001797,2]
[393219462,1762337441077,-1000.0,0.0001797,2]
[393219463,1762337441088,-500.0,0.0001797,2]
[393219464,1762337441098,-500.0,0.00017973,2]
[393219465,1762337441110,-216.03107045,0.00017973,2]
[393219466,1762337441120,-500.0,0.00017973,2]
[393219467,1762337441130,-160.4752958,0.00017973,2]
[393219468,1762337441140,-500.0,0.00017973,2]
[393219469,1762337441151,-500.0,0.00017973,2]
[393219470,1762337441162,-546.71084981,0.00017973,2]
[393219471,1762337441171,-500.0,0.00017973,2]
[393219472,1762337441181,-500.0,0.00017973,2]
[393219473,1762337441196,-500.0,0.00017973,2]
[393219474,1762337441205,-500.0,0.00017973,2]
[393219475,1762337441217,-500.0,0.00017973,2]
[393219476,1762337441229,-500.0,0.00017973,2]
[393219477,1762337441239,-369.18541014,0.00017973,2]
[393219478,1762337441248,-500.0,0.00017973,2]
[393219479,1762337441258,-500.0,0.00017973,2]
[393219480,1762337441269,-547.57,0.00017989,2]
[393219481,1762337441279,-500.0,0.00017989,2]
[393219482,1762337441289,-151.0,0.00017989,2]
[393219483,1762337441298,-500.0,0.00017989,2]
[393219484,1762337441307,-151.0,0.00017989,2]
[393219485,1762337441317,-500.0,0.00017989,2]
[393219486,1762337441326,-151.0,0.00017989,2]
[393219487,1762337441336,-151.0,0.00017989,2]
[393219488,1762337441345,-500.0,0.00017989,2]
[393219489,1762337441355,-151.0,0.00017989,2]
[393219490,1762337441365,-500.0,0.00017989,2]
[393219491,1762337441374,-151.0,0.00017989,2]
[393219492,1762337441383,-500.0,0.00017989,2]
[393219493,1762337441392,-169.32010546,0.00017989,2]
[393219494,1762337441401,-500.0,0.00017989,2]
[393219495,1762337441413,-500.0,0.00017989,2]
[393219496,1762337441423,-500.0,0.00017989,2]
[393219497,1762337441433,-500.0,0.00017989,2]
[393219498,1762337441443,-500.0,0.00017989,2]
[393219499,1762337441453,-250.0,0.00017989,2]
[393219500,1762337441463,-250.0,0.00017989,2]
[393219501,1762337441472,-250.0,0.00017989,2]
[393219502,1762337441481,-250.0,0.00017989,2]
[393219503,1762337441492,-172.1351218,0.00017989,2]
[393219504,1762337441503,-151.0,0.00017989,2]
[393219505,1762337441513,-151.0,0.00017989,2]
[393219506,1762337441522,-151.0,0.00017989,2]
[393219507,1762337441533,-151.0,0.00017989,2]
[393219508,1762337441542,-322.6107,0.00017989,2]
[393219509,1762337441552,-198.27640307,0.0001799,2]
[393219510,1762337441563,-198.27640307,0.0001799,2]
[393219511,1762337441572,-5888.0,0.00017993,2]
[393219512,1762337441584,-151.0,0.00017997,2]
[393219513,1762337441594,-1000.0,0.00017999,2]
[393219514,1762337441603,-300.0,0.00017999,2]
[393219515,1762337441612,-666.0,0.00017999,2]
[393219516,1762337441621,-500.0,0.00017999,2]
[393219517,1762337441630,-432.36280577,0.00017999,2]
[393219518,1762337441639,-150.0,0.00017999,2]
[393219519,1762337441648,-217.3955486,0.00017999,2]
[393219520,1762337441657,-150.0,0.00017999,2]
[393219521,1762337441666,-150.0,0.00017999,2]
[393219522,1762337441675,-151.13904288,0.00017999,2]
[393219523,1762337441684,-150.0,0.00017999,2]
[393219524,1762337441693,-500.0,0.00017999,2]
[393219525,1762337441702,-500.0,0.00017999,2]
[393219526,1762337441712,-266.17310046,0.00017999,2]
[393219527,1762337441726,-150.0,0.00017999,2]
[393219528,1762337441735,-150.0,0.00017999,2]
[393219529,1762337441746,-500.0,0.00017999,2]
[393219530,1762337441755,-300.0,0.00017999,2]
[393219531,1762337441764,-666.0,0.00017999,2]
[393219532,1762337441773,-300.0,0.00017999,2]
[393219533,1762337441781,-666.0,0.00017999,2]
[393219534,1762337441790,-150.0,0.00017999,2]
[393219535,1762337441799,-150.0,0.00017999,2]
[393219536,1762337441808,-150.0,0.00017999,2]
[393219537,1762337441818,-150.0,0.00017999,2]
[393219538,1762337441827,-500.0,0.00017999,2]
[393219539,1762337441836,-500.0,0.00017999,2]
[393219540,1762337441845,-500.0,0.00017999,2]
[393219541,1762337441855,-500.0,0.00017999,2]
[393219542,1762337441868,-500.0,0.00017999,2]
[393219543,1762337441877,-500.0,0.00017999,2]
[393219544,1762337441885,-500.0,0.00017999,2]
[393219545,1762337441895,-500.0,0.00017999,2]
[393219546,1762337441905,-500.0,0.00017999,2]
[393219547,1762337441914,-500.0,0.00017999,2]
[393219548,1762337441926,-500.0,0.00017999,2]
[393219549,1762337441936,-500.0,0.00017999,2]
[393219550,1762337441946,-500.0,0.00017999,2]
[393219551,1762337441954,-500.0,0.00017999,2]
[393219552,1762337441964,-500.0,0.00017999,2]
[393219553,1762337441974,-500.0,0.00017999,2]
[393219554,1762337441984,-500.0,0.00017999,2]
[393219555,1762337441993,-500.0,0.00017999,2]
[393219556,1762337442003,-500.0,0.00017999,2]
[393219557,1762337442012,-500.0,0.00017999,2]
[393219558,1762337442021,-500.0,0.00017999,2]
[393219559,1762337442030,-500.0,0.00017999,2]
[393219560,1762337442039,-500.0,0.00017999,2]
[393219561,1762337442047,-589.41461623,0.00017999,2]
[393219562,1762337442056,-150.0,0.00017999,2]
[393219563,1762337442065,-150.0,0.00017999,2]
[393219564,1762337442074,-500.0,0.00017999,2]
[393219565,1762337442084,-150.0,0.00017999,2]
[393219566,1762337442093,-150.0,0.00017999,2]
[393219567,1762337442102,-500.0,0.00017999,2]
[393219568,1762337442112,-150.0,0.00017999,2]
[393219569,1762337442131,-500.0,0.00017999,2]
[393219570,1762337442142,-150.0,0.00017999,2]
[393219571,1762337442153,-500.0,0.00017999,2]
[393219572,1762337442162,-500.0,0.00017999,2]
[393219573,1762337442171,-433.67970191,0.00017999,2]
[393219574,1762337442180,-266.84937166,0.00017999,2]
[393219575,1762337442189,-500.0,0.00017999,2]
[393219576,1762337442198,-500.0,0.00017999,2]
[393219577,1762337442207,-500.0,0.00017999,2]
[393219578,1762337442215,-504.22518447,0.00017999,2]
[393219579,1762337442224,-3299.0,0.00018,2]
[393219580,1762337442233,-3698293.05963284,0.00018,2]
[393219581,1762337442250,-2179.56841536,0.00018,2]
[393219582,1762337442299,-1198.33477387,0.00018,2]
[393219596,1762337443350,-510.5,0.00018,2]
[393219597,1762337443404,-626.12397403,0.00018,2]
[393219599,1762337446317,-472.7124189,0.00017304,2]
[393219600,1762337446328,-475.3638528,0.00017899,2]
[393219601,1762337446337,-9019.30480157,0.00018,2]
[393219602,1762337446693,-11094.0,0.00018,2]
[393219603,1762337446738,-1522.426785,0.00018,2]
[393219604,1762337446752,-841.5705,0.00018,2]
[393219605,1762337474361,150.0,0.00017123,120]
[393219607,1762337522049,-258.9016315,0.00015808,2]
[393219608,1762337525899,-294.37900346,0.00015808,2]
[393219610,1762337529222,-323.26436217,0.00015808,2]
[393219611,1762337533253,-158.70487889,0.00015808,2]
[393219612,1762337534426,-164.75012398,0.00015808,2]
[393219613,1762337534449,-1.74450169,0.00015945,2]
[393219614,1762337551455,-248.25549831,0.00015945,2]
[393219615,1762337551478,-31.44360169,0.00016082,2]
[393219616,1762337552972,-185.97,0.00016082,2]
[393219617,1762337555152,-250.00893,0.00016082,2]
[393219618,1762337557058,-166.66,0.00016082,2]
[393219619,1762337558614,-181.47555507,0.00016082,2]
[393219633,1762337701530,-384.44191324,0.00016082,2]
[393219634,1762337701553,-219.98496623,0.00016082,2]
[393219635,1762337703077,-173.79895283,0.00016082,2]
[393219641,1762337980991,-185.78389073,0.00016082,2]
[393219642,1762337981026,-706.21608094,0.00016082,2]
[393219643,1762337981055,-200.0,0.00016355,2]
[393219644,1762337981084,-500.0,0.00016356,2]
[393219645,1762337981112,-1100.0,0.00016356,2]
[393219646,1762337981140,-700.28,0.00016577,2]
[393219647,1762337981170,-300.0,0.00016835,2]
[393219648,1762337981198,-1200.0,0.00016835,2]
[393219649,1762337981644,-1809.57005666,0.00016836,2]
[393219650,1762337981658,-10000.01,0.00016836,2]
[393219651,1762337981673,-8580.27994334,0.00016836,2]
[393219652,1762337981683,-1419.73005666,0.00017005,2]
[393219653,1762337981715,-1080.26994334,0.00017005,2]
[393219654,1762337981744,-1381.20145281,0.00017005,2]
[393219655,1762337981771,-240.79252869,0.00017005,2]
[393219656,1762337981798,-201.33738244,0.00017005,2]
[393219657,1762337981825,-500.0,0.00017104,2]
[393219658,1762337981853,-500.0,0.00017104,2]
[393219659,1762337981880,-500.0,0.00017104,2]
[393219660,1762337981908,-550.0,0.00017104,2]
[393219661,1762337982021,-1381.20145275,0.00017104,2]
[393219662,1762337982049,-279.6991,0.00017105,2]
[393219663,1762337982159,-92.80738544,0.00017105,2]
[393219664,1762337982176,-6678.2088945,0.00017105,2]
[393219665,1762337982204,-10000.01,0.00017105,2]
[393219666,1762337982218,-10000.01,0.00017105,2]
[393219667,1762337982241,-10000.01,0.00017105,2]
[393219668,1762337982345,-10000.01,0.00017105,2]
[393219669,1762337982466,-10000.01,0.00017105,2]
[393219670,1762337982571,-10000.01,0.00017105,2]